[Event "Titled Tuesday Blitz June 27 Early 2023"]
[White "Tari, Aryan"]
[Black "Liu, Casper"]
[WhiteFideId "1510045"]
[BlackFideId "1454153"]
[WhiteElo "2908"]
[BlackElo "2515"]
[Result "1-0"]
[Round "1"]
[TimeControl "180+2"]
[Date "2023.06.27"]
[WhiteClock "0:00:12"]
[BlackClock "0:00:15"]
[Board "37"]

1. e4 {[%clk 0:03:00]}  c5 {[%clk 0:02:53]} 2. Nc3 {[%clk 0:02:58]}  d6 {[%clk 0:02:53]} 3. f4 {[%clk 0:02:58]}  a6 {[%clk 0:02:51]} 4. Nf3 {[%clk 0:02:58]}  b5 {[%clk 0:02:51]} 5. g3 {[%clk 0:02:58]}  Bb7 {[%clk 0:02:51]} 6. d3 {[%clk 0:02:57]}  g6 {[%clk 0:02:52]} 7. Bg2 {[%clk 0:02:57]}  Bg7 {[%clk 0:02:52]} 8. O-O {[%clk 0:02:57]}  Nf6 {[%clk 0:02:53]} 9. f5 {[%clk 0:02:58]}  O-O {[%clk 0:02:51]} 10. h3 {[%clk 0:02:56]}  Nbd7 {[%clk 0:02:50]} 11. g4 {[%clk 0:02:55]}  e5 {[%clk 0:02:40]} 12. g5 {[%clk 0:02:43]}  Nh5 {[%clk 0:02:33]} 13. f6 {[%clk 0:02:43]}  Ndxf6 {[%clk 0:02:25]} 14. gxf6 {[%clk 0:02:43]}  Bxf6 {[%clk 0:02:26]} 15. Bh6 {[%clk 0:02:40]}  Bg7 {[%clk 0:02:17]} 16. Qd2 {[%clk 0:02:40]}  f5 {[%clk 0:02:17]} 17. Bxg7 {[%clk 0:02:28]}  Kxg7 {[%clk 0:02:08]} 18. Ng5 {[%clk 0:02:28]}  Qe7 {[%clk 0:02:08]} 19. exf5 {[%clk 0:02:26]}  gxf5 {[%clk 0:01:56]} 20. Bxb7 {[%clk 0:02:22]}  Qxb7 {[%clk 0:01:55]} 21. Ne6+ {[%clk 0:02:17]}  Kh8 {[%clk 0:01:54]} 22. Nxf8 {[%clk 0:02:17]}  Rxf8 {[%clk 0:01:53]} 23. Kh2 {[%clk 0:02:15]}  b4 {[%clk 0:01:43]} 24. Qh6 {[%clk 0:02:10]}  Rg8 {[%clk 0:01:09]} 25. Rg1 {[%clk 0:02:01]}  bxc3 {[%clk 0:01:00]} 26. Rxg8+ {[%clk 0:01:54]}  Kxg8 {[%clk 0:01:00]} 27. Qxh5 {[%clk 0:01:49]}  cxb2 {[%clk 0:00:50]} 28. Qe8+ {[%clk 0:01:45]}  Kg7 {[%clk 0:00:50]} 29. Rg1+ {[%clk 0:01:46]}  Kf6 {[%clk 0:00:49]} 30. Qf8+ {[%clk 0:01:23]}  Ke6 {[%clk 0:00:48]} 31. Qg8+ {[%clk 0:01:23]}  Kf6 {[%clk 0:00:44]} 32. Qg5+ {[%clk 0:00:27]}  Ke6 {[%clk 0:00:44]} 33. Rb1 {[%clk 0:00:28]}  Qf3 {[%clk 0:00:44]} 34. Qd2 {[%clk 0:00:21]}  c4 {[%clk 0:00:17]} 35. dxc4 {[%clk 0:00:18]}  e4 {[%clk 0:00:18]} 36. Rxb2 {[%clk 0:00:14]}  f4 {[%clk 0:00:18]} 37. Qd5+ {[%clk 0:00:13]}  Kf6 {[%clk 0:00:16]} 38. Qxd6+ {[%clk 0:00:14]}  Kf5 {[%clk 0:00:13]} 39. Qf8+ {[%clk 0:00:14]}  Ke5 {[%clk 0:00:13]} 40. Qg7+ {[%clk 0:00:14]}  Kd6 {[%clk 0:00:13]} 41. Qd4+ {[%clk 0:00:12]}  Kc7 {[%clk 0:00:12]} 42. Qc5+ {[%clk 0:00:11]}  Kd7 {[%clk 0:00:12]} 43. Rb7+ {[%clk 0:00:11]}  Ke6 {[%clk 0:00:13]} 44. Re7+ {[%clk 0:00:11]}  Kf6 {[%clk 0:00:14]} 45. Qe5+ {[%clk 0:00:11]}  Kg6 {[%clk 0:00:15]} 46. Rg7+ {[%clk 0:00:12]}  Kh6 {[%clk 0:00:15]} 47. Qg5# {[%clk 0:00:12]} 1-0


[Site "https://www.chess.com"]

[Event "Titled Tuesday Blitz June 27 Early 2023"]
[White "Melian, Juan Sebastian"]
[Black "Henriquez Villagra, Cristobal"]
[WhiteFideId "3706575"]
[BlackFideId "3409350"]
[WhiteElo "2513"]
[BlackElo "2905"]
[Result "0-1"]
[Round "1"]
[TimeControl "180+2"]
[Date "2023.06.27"]
[WhiteClock "0:00:00"]
[BlackClock "0:00:13"]
[Board "38"]

1. d4 {[%clk 0:02:47]}  d6 {[%clk 0:03:00]} 2. e4 {[%clk 0:01:56]}  Nf6 {[%clk 0:01:57]} 3. Nc3 {[%clk 0:01:49]}  e5 {[%clk 0:01:55]} 4. Nf3 {[%clk 0:01:47]}  Nbd7 {[%clk 0:01:54]} 5. Bc4 {[%clk 0:01:45]}  Be7 {[%clk 0:01:55]} 6. O-O {[%clk 0:01:42]}  O-O {[%clk 0:01:55]} 7. Re1 {[%clk 0:01:31]}  h6 {[%clk 0:01:55]} 8. a4 {[%clk 0:01:11]}  c6 {[%clk 0:01:54]} 9. a5 {[%clk 0:01:08]}  Re8 {[%clk 0:01:54]} 10. h3 {[%clk 0:01:08]}  Bf8 {[%clk 0:01:54]} 11. Be3 {[%clk 0:01:06]}  exd4 {[%clk 0:01:52]} 12. Bxd4 {[%clk 0:01:06]}  b5 {[%clk 0:01:51]} 13. axb6 {[%clk 0:01:04]}  Nxb6 {[%clk 0:01:51]} 14. Bb3 {[%clk 0:01:03]}  Be6 {[%clk 0:01:47]} 15. Bxe6 {[%clk 0:00:55]}  Rxe6 {[%clk 0:01:48]} 16. e5 {[%clk 0:00:56]}  dxe5 {[%clk 0:01:39]} 17. Bxe5 {[%clk 0:00:56]}  Nc4 {[%clk 0:01:34]} 18. Qxd8 {[%clk 0:00:33]}  Rxd8 {[%clk 0:01:35]} 19. Bxf6 {[%clk 0:00:25]}  Rxf6 {[%clk 0:01:32]} 20. Rxa7 {[%clk 0:00:24]}  Nxb2 {[%clk 0:01:27]} 21. Ne4 {[%clk 0:00:19]}  Re6 {[%clk 0:01:20]} 22. Raa1 {[%clk 0:00:14]}  Nc4 {[%clk 0:01:10]} 23. Ng3 {[%clk 0:00:12]}  Rxe1+ {[%clk 0:00:45]} 24. Rxe1 {[%clk 0:00:11]}  Rb8 {[%clk 0:00:44]} 25. Re4 {[%clk 0:00:09]}  Na3 {[%clk 0:00:44]} 26. c4 {[%clk 0:00:07]}  Rb1+ {[%clk 0:00:40]} 27. Kh2 {[%clk 0:00:07]}  Rc1 {[%clk 0:00:41]} 28. Ne5 {[%clk 0:00:07]}  c5 {[%clk 0:00:38]} 29. Nd7 {[%clk 0:00:06]}  Bd6 {[%clk 0:00:38]} 30. Re8+ {[%clk 0:00:06]}  Kh7 {[%clk 0:00:38]} 31. Nf8+ {[%clk 0:00:05]}  Bxf8 {[%clk 0:00:35]} 32. Rxf8 {[%clk 0:00:06]}  Kg6 {[%clk 0:00:33]} 33. Rc8 {[%clk 0:00:06]}  Rxc4 {[%clk 0:00:32]} 34. Rc6+ {[%clk 0:00:06]}  f6 {[%clk 0:00:32]} 35. Nf1 {[%clk 0:00:03]}  Nc2 {[%clk 0:00:25]} 36. Rc7 {[%clk 0:00:02]}  Nb4 {[%clk 0:00:24]} 37. Nd2 {[%clk 0:00:02]}  Rc2 {[%clk 0:00:20]} 38. Ne4 {[%clk 0:00:01]}  Nd3 {[%clk 0:00:19]} 39. Nd6 {[%clk 0:00:01]}  Nxf2 {[%clk 0:00:14]} 40. Ne8 {[%clk 0:00:01]}  Ne4 {[%clk 0:00:14]} 41. Rxg7+ {[%clk 0:00:01]}  Kf5 {[%clk 0:00:15]} 42. Rc7 {[%clk 0:00:02]}  c4 {[%clk 0:00:15]} 43. Ng7+ {[%clk 0:00:02]}  Ke5 {[%clk 0:00:16]} 44. Re7+ {[%clk 0:00:02]}  Kd5 {[%clk 0:00:15]} 45. Nf5 {[%clk 0:00:02]}  Re2 {[%clk 0:00:12]} 46. Rd7+ {[%clk 0:00:01]}  Kc5 {[%clk 0:00:13]} 47. Rc7+ {[%clk 0:00:00]}  Kb4 {[%clk 0:00:13]} 0-1


[Site "https://www.chess.com"]

[Event "Titled Tuesday Blitz June 27 Early 2023"]
[White "Demchenko, Anton"]
[Black "Droin, Augustin"]
[WhiteFideId "4160258"]
[BlackFideId "45105987"]
[WhiteElo "2903"]
[BlackElo "2513"]
[Result "1-0"]
[Round "1"]
[TimeControl "180+2"]
[Date "2023.06.27"]
[WhiteClock "0:00:23"]
[BlackClock "0:00:10"]
[Board "39"]

1. e4 {[%clk 0:02:55]}  c5 {[%clk 0:02:56]} 2. Nf3 {[%clk 0:02:55]}  Nc6 {[%clk 0:02:56]} 3. Bb5 {[%clk 0:02:54]}  g6 {[%clk 0:02:55]} 4. O-O {[%clk 0:02:53]}  Bg7 {[%clk 0:02:52]} 5. Re1 {[%clk 0:02:54]}  e5 {[%clk 0:02:51]} 6. Bxc6 {[%clk 0:02:53]}  dxc6 {[%clk 0:02:52]} 7. d3 {[%clk 0:02:54]}  Qc7 {[%clk 0:02:52]} 8. a3 {[%clk 0:02:51]}  Nf6 {[%clk 0:02:51]} 9. Be3 {[%clk 0:02:49]}  Nd7 {[%clk 0:02:51]} 10. b4 {[%clk 0:02:48]}  cxb4 {[%clk 0:02:27]} 11. axb4 {[%clk 0:02:49]}  b6 {[%clk 0:02:28]} 12. Nc3 {[%clk 0:02:40]}  O-O {[%clk 0:02:23]} 13. Qb1 {[%clk 0:02:33]}  Rd8 {[%clk 0:02:17]} 14. Ra3 {[%clk 0:02:29]}  Nf8 {[%clk 0:02:15]} 15. b5 {[%clk 0:02:23]}  Bd7 {[%clk 0:01:54]} 16. bxc6 {[%clk 0:02:19]}  Bxc6 {[%clk 0:01:55]} 17. Qb3 {[%clk 0:02:19]}  Ne6 {[%clk 0:01:54]} 18. Rea1 {[%clk 0:02:17]}  Bf8 {[%clk 0:01:29]} 19. R3a2 {[%clk 0:02:13]}  Bc5 {[%clk 0:01:29]} 20. h3 {[%clk 0:01:57]}  Bxe3 {[%clk 0:01:20]} 21. fxe3 {[%clk 0:01:58]}  a5 {[%clk 0:01:18]} 22. Rb2 {[%clk 0:01:39]}  Rab8 {[%clk 0:01:18]} 23. Nd5 {[%clk 0:01:33]}  Bxd5 {[%clk 0:01:01]} 24. exd5 {[%clk 0:01:34]}  Nc5 {[%clk 0:01:01]} 25. Qc4 {[%clk 0:01:33]}  Qd6 {[%clk 0:01:02]} 26. e4 {[%clk 0:01:31]}  Rdc8 {[%clk 0:01:02]} 27. Qb5 {[%clk 0:01:31]}  Nd7 {[%clk 0:01:00]} 28. Nd2 {[%clk 0:01:22]}  Qc5+ {[%clk 0:00:58]} 29. Qxc5 {[%clk 0:01:21]}  Rxc5 {[%clk 0:00:59]} 30. Nc4 {[%clk 0:01:17]}  Kf8 {[%clk 0:00:49]} 31. Kf1 {[%clk 0:01:12]}  Ke7 {[%clk 0:00:49]} 32. Ke2 {[%clk 0:01:11]}  Kd8 {[%clk 0:00:47]} 33. g4 {[%clk 0:01:06]}  Kc7 {[%clk 0:00:47]} 34. Kd2 {[%clk 0:00:52]}  Ra8 {[%clk 0:00:47]} 35. Na3 {[%clk 0:00:51]}  Rh8 {[%clk 0:00:30]} 36. Nb5+ {[%clk 0:00:50]}  Kd8 {[%clk 0:00:30]} 37. c4 {[%clk 0:00:40]}  f6 {[%clk 0:00:30]} 38. Rg1 {[%clk 0:00:35]}  Ke7 {[%clk 0:00:25]} 39. Nc3 {[%clk 0:00:33]}  Rcc8 {[%clk 0:00:22]} 40. Na4 {[%clk 0:00:29]}  Rb8 {[%clk 0:00:19]} 41. Rgb1 {[%clk 0:00:28]}  h5 {[%clk 0:00:20]} 42. gxh5 {[%clk 0:00:23]}  Rxh5 {[%clk 0:00:19]} 43. c5 {[%clk 0:00:24]}  Rxh3 {[%clk 0:00:17]} 44. c6 {[%clk 0:00:24]}  Rh2+ {[%clk 0:00:16]} 45. Kc3 {[%clk 0:00:25]}  Rxb2 {[%clk 0:00:17]} 46. Rxb2 {[%clk 0:00:24]}  Nf8 {[%clk 0:00:14]} 47. Nxb6 {[%clk 0:00:23]}  g5 {[%clk 0:00:10]} 48. c7 {[%clk 0:00:23]} 1-0


[Site "https://www.chess.com"]

[Event "Titled Tuesday Blitz June 27 Early 2023"]
[White "Mogirzan, Matei-Valeriu"]
[Black "Steinberg, Nitzan"]
[WhiteFideId "1257455"]
[BlackFideId "2801795"]
[WhiteElo "2512"]
[BlackElo "2900"]
[Result "1-0"]
[Round "1"]
[TimeControl "180+2"]
[Date "2023.06.27"]
[WhiteClock "0:00:03"]
[BlackClock "0:00:56"]
[Board "40"]

1. e4 {[%clk 0:03:00]}  g6 {[%clk 0:02:59]} 2. Nf3 {[%clk 0:02:58]}  Bg7 {[%clk 0:02:58]} 3. d4 {[%clk 0:02:57]}  d6 {[%clk 0:02:59]} 4. Bc4 {[%clk 0:02:55]}  a6 {[%clk 0:02:58]} 5. h4 {[%clk 0:02:54]}  b5 {[%clk 0:02:54]} 6. Bb3 {[%clk 0:02:53]}  e6 {[%clk 0:02:53]} 7. c3 {[%clk 0:02:50]}  h5 {[%clk 0:02:52]} 8. Ng5 {[%clk 0:02:48]}  Nf6 {[%clk 0:02:47]} 9. f4 {[%clk 0:02:40]}  Bb7 {[%clk 0:02:41]} 10. e5 {[%clk 0:02:34]}  Ng4 {[%clk 0:02:33]} 11. O-O {[%clk 0:02:29]}  Qe7 {[%clk 0:02:23]} 12. Qe1 {[%clk 0:02:04]}  Nd7 {[%clk 0:02:19]} 13. Nd2 {[%clk 0:02:01]}  O-O {[%clk 0:02:02]} 14. Nde4 {[%clk 0:01:51]}  d5 {[%clk 0:01:48]} 15. Nf2 {[%clk 0:01:46]}  Nh6 {[%clk 0:01:48]} 16. Bc2 {[%clk 0:01:35]}  c5 {[%clk 0:01:48]} 17. a3 {[%clk 0:01:22]}  cxd4 {[%clk 0:01:45]} 18. cxd4 {[%clk 0:01:23]}  Rac8 {[%clk 0:01:46]} 19. Qe2 {[%clk 0:01:21]}  Nf5 {[%clk 0:01:41]} 20. Qd3 {[%clk 0:01:14]}  Rc4 {[%clk 0:01:40]} 21. Be3 {[%clk 0:01:09]}  Nxe3 {[%clk 0:01:37]} 22. Qxe3 {[%clk 0:01:06]}  Rxc2 {[%clk 0:01:38]} 23. g4 {[%clk 0:01:07]}  hxg4 {[%clk 0:01:20]} 24. Nxg4 {[%clk 0:01:08]}  Nc5 {[%clk 0:01:21]} 25. dxc5 {[%clk 0:00:47]}  d4 {[%clk 0:01:21]} 26. Qg3 {[%clk 0:00:48]}  Rg2+ {[%clk 0:01:20]} 27. Qxg2 {[%clk 0:00:48]}  Bxg2 {[%clk 0:01:21]} 28. Kxg2 {[%clk 0:00:49]}  Qxc5 {[%clk 0:01:22]} 29. Rac1 {[%clk 0:00:45]}  Qd5+ {[%clk 0:01:23]} 30. Kg3 {[%clk 0:00:45]}  d3 {[%clk 0:01:23]} 31. Rcd1 {[%clk 0:00:24]}  Rd8 {[%clk 0:01:23]} 32. Rd2 {[%clk 0:00:22]}  Rc8 {[%clk 0:01:15]} 33. Rf3 {[%clk 0:00:15]}  Rd8 {[%clk 0:01:15]} 34. Re3 {[%clk 0:00:11]}  Qh1 {[%clk 0:01:15]} 35. Rdxd3 {[%clk 0:00:07]}  Qg1+ {[%clk 0:01:15]} 36. Kf3 {[%clk 0:00:05]}  Qf1+ {[%clk 0:01:09]} 37. Nf2 {[%clk 0:00:05]}  Rc8 {[%clk 0:01:08]} 38. Rd1 {[%clk 0:00:04]}  Qc4 {[%clk 0:01:08]} 39. Rc3 {[%clk 0:00:04]}  Qxc3+ {[%clk 0:01:03]} 40. bxc3 {[%clk 0:00:05]}  Rxc3+ {[%clk 0:01:03]} 41. Rd3 {[%clk 0:00:05]}  Rc4 {[%clk 0:01:04]} 42. Rd8+ {[%clk 0:00:05]}  Bf8 {[%clk 0:01:05]} 43. Nfe4 {[%clk 0:00:05]}  Kg7 {[%clk 0:01:05]} 44. Nf6 {[%clk 0:00:03]}  Rc3+ {[%clk 0:00:56]} 45. Kg4 {[%clk 0:00:03]}  Be7 {[%clk 0:00:56]} 46. Rg8+ {[%clk 0:00:02]}  Kh6 {[%clk 0:00:56]} 47. Nxf7# {[%clk 0:00:03]} 1-0


[Site "https://www.chess.com"]

[Event "Titled Tuesday Blitz June 27 Early 2023"]
[White "Ter-Sahakyan, Samvel"]
[Black "Matyukov, Petr"]
[WhiteFideId "13302531"]
[BlackFideId "4103688"]
[WhiteElo "2894"]
[BlackElo "2512"]
[Result "1-0"]
[Round "1"]
[TimeControl "180+2"]
[Date "2023.06.27"]
[WhiteClock "0:00:45"]
[BlackClock "0:00:05"]
[Board "41"]

1. d4 {[%clk 0:03:00]}  Nf6 {[%clk 0:02:59]} 2. c4 {[%clk 0:02:59]}  e6 {[%clk 0:03:00]} 3. Nf3 {[%clk 0:02:59]}  b6 {[%clk 0:03:00]} 4. g3 {[%clk 0:02:57]}  Ba6 {[%clk 0:02:59]} 5. b3 {[%clk 0:02:57]}  d5 {[%clk 0:02:58]} 6. Bg2 {[%clk 0:02:57]}  Bb4+ {[%clk 0:02:56]} 7. Bd2 {[%clk 0:02:56]}  Be7 {[%clk 0:02:55]} 8. Bc3 {[%clk 0:02:54]}  O-O {[%clk 0:02:51]} 9. Nbd2 {[%clk 0:02:54]}  Nbd7 {[%clk 0:02:46]} 10. O-O {[%clk 0:02:52]}  Bb7 {[%clk 0:02:43]} 11. Qc2 {[%clk 0:02:43]}  Rc8 {[%clk 0:02:38]} 12. Qb2 {[%clk 0:02:42]}  c5 {[%clk 0:02:29]} 13. Rfd1 {[%clk 0:02:40]}  dxc4 {[%clk 0:02:24]} 14. Nxc4 {[%clk 0:02:39]}  Qc7 {[%clk 0:02:20]} 15. Rac1 {[%clk 0:02:37]}  Rfd8 {[%clk 0:02:17]} 16. a4 {[%clk 0:02:22]}  Qb8 {[%clk 0:02:13]} 17. dxc5 {[%clk 0:02:10]}  Nxc5 {[%clk 0:02:11]} 18. Be5 {[%clk 0:02:10]}  Qa8 {[%clk 0:02:06]} 19. Nd6 {[%clk 0:02:10]}  Bxd6 {[%clk 0:01:59]} 20. Bxd6 {[%clk 0:01:59]}  Nfe4 {[%clk 0:01:49]} 21. Bf4 {[%clk 0:01:52]}  Bd5 {[%clk 0:01:31]} 22. Nd4 {[%clk 0:01:52]}  Nxf2 {[%clk 0:01:09]} 23. Kxf2 {[%clk 0:01:06]}  Bxg2 {[%clk 0:01:08]} 24. Nb5 {[%clk 0:01:06]}  Rxd1 {[%clk 0:00:50]} 25. Rxd1 {[%clk 0:01:06]}  Bh3 {[%clk 0:00:49]} 26. Nd6 {[%clk 0:00:57]}  Qg2+ {[%clk 0:00:43]} 27. Ke3 {[%clk 0:00:57]}  Bg4 {[%clk 0:00:17]} 28. Nxc8 {[%clk 0:00:49]}  Qe4+ {[%clk 0:00:12]} 29. Kf2 {[%clk 0:00:49]}  Bh3 {[%clk 0:00:05]} 30. Rd8# {[%clk 0:00:45]} 1-0


[Site "https://www.chess.com"]

[Event "Titled Tuesday Blitz June 27 Early 2023"]
[White "tetrix83"]
[Black "Makhnev, Denis"]
[BlackFideId "13707647"]
[WhiteElo "2512"]
[BlackElo "2892"]
[Result "0-1"]
[Round "1"]
[TimeControl "180+2"]
[Date "2023.06.27"]
[WhiteClock "0:00:00"]
[BlackClock "0:00:16"]
[Board "42"]

1. e4 {[%clk 0:02:57]}  e5 {[%clk 0:02:59]} 2. Nf3 {[%clk 0:02:55]}  Nc6 {[%clk 0:02:59]} 3. Bb5 {[%clk 0:02:53]}  a6 {[%clk 0:03:00]} 4. Bxc6 {[%clk 0:02:52]}  dxc6 {[%clk 0:03:00]} 5. O-O {[%clk 0:02:52]}  Qf6 {[%clk 0:02:59]} 6. d4 {[%clk 0:02:52]}  exd4 {[%clk 0:02:59]} 7. Bg5 {[%clk 0:02:51]}  Qg6 {[%clk 0:02:56]} 8. Qxd4 {[%clk 0:02:50]}  Be6 {[%clk 0:02:33]} 9. Nbd2 {[%clk 0:02:47]}  Bd6 {[%clk 0:02:31]} 10. Rfe1 {[%clk 0:02:37]}  h6 {[%clk 0:02:22]} 11. Bh4 {[%clk 0:02:34]}  c5 {[%clk 0:02:22]} 12. Qe3 {[%clk 0:02:30]}  Nf6 {[%clk 0:02:15]} 13. Bxf6 {[%clk 0:02:23]}  gxf6 {[%clk 0:02:13]} 14. Nh4 {[%clk 0:02:21]}  Qg5 {[%clk 0:02:09]} 15. Nf5 {[%clk 0:02:21]}  O-O-O {[%clk 0:02:07]} 16. Nf3 {[%clk 0:02:14]}  Qxe3 {[%clk 0:01:58]} 17. Nxe3 {[%clk 0:02:05]}  Be5 {[%clk 0:01:50]} 18. Nxe5 {[%clk 0:02:04]}  fxe5 {[%clk 0:01:50]} 19. a3 {[%clk 0:01:57]}  Rd4 {[%clk 0:01:42]} 20. f3 {[%clk 0:01:57]}  b5 {[%clk 0:01:42]} 21. Rad1 {[%clk 0:01:53]}  Rhd8 {[%clk 0:01:40]} 22. c3 {[%clk 0:01:52]}  Rd2 {[%clk 0:01:39]} 23. Nd5 {[%clk 0:01:31]}  Rxd1 {[%clk 0:01:17]} 24. Rxd1 {[%clk 0:01:31]}  Bxd5 {[%clk 0:01:18]} 25. exd5 {[%clk 0:01:18]}  c6 {[%clk 0:01:17]} 26. d6 {[%clk 0:01:11]}  Kd7 {[%clk 0:01:17]} 27. g4 {[%clk 0:00:45]}  Ke6 {[%clk 0:01:16]} 28. Kf2 {[%clk 0:00:27]}  Rxd6 {[%clk 0:01:16]} 29. Rxd6+ {[%clk 0:00:26]}  Kxd6 {[%clk 0:01:16]} 30. Kg3 {[%clk 0:00:26]}  Kd5 {[%clk 0:00:50]} 31. Kh4 {[%clk 0:00:20]}  e4 {[%clk 0:00:30]} 32. fxe4+ {[%clk 0:00:19]}  Kxe4 {[%clk 0:00:31]} 33. Kh5 {[%clk 0:00:18]}  Kf4 {[%clk 0:00:31]} 34. h4 {[%clk 0:00:16]}  c4 {[%clk 0:00:26]} 35. Kxh6 {[%clk 0:00:13]}  Kxg4 {[%clk 0:00:26]} 36. h5 {[%clk 0:00:13]}  f5 {[%clk 0:00:26]} 37. Kg6 {[%clk 0:00:13]}  f4 {[%clk 0:00:26]} 38. h6 {[%clk 0:00:14]}  f3 {[%clk 0:00:26]} 39. h7 {[%clk 0:00:14]}  f2 {[%clk 0:00:27]} 40. h8=Q {[%clk 0:00:15]}  f1=Q {[%clk 0:00:28]} 41. Qc8+ {[%clk 0:00:09]}  Kh4 {[%clk 0:00:16]} 42. Qxc6 {[%clk 0:00:04]}  Qb1+ {[%clk 0:00:16]} 43. Kf6 {[%clk 0:00:00]}  Qxb2 {[%clk 0:00:16]} 0-1


[Site "https://www.chess.com"]

[Event "Titled Tuesday Blitz June 27 Early 2023"]
[White "Nogerbek, Kazybek"]
[Black "Gogolev, Artem"]
[WhiteFideId "13710427"]
[BlackFideId "4116615"]
[WhiteElo "2892"]
[BlackElo "2510"]
[Result "1-0"]
[Round "1"]
[TimeControl "180+2"]
[Date "2023.06.27"]
[WhiteClock "0:00:08"]
[BlackClock "0:00:15"]
[Board "43"]

1. e4 {[%clk 0:01:52]}  c5 {[%clk 0:02:52]} 2. Nf3 {[%clk 0:01:51]}  Nf6 {[%clk 0:02:52]} 3. Nc3 {[%clk 0:01:46]}  d5 {[%clk 0:02:52]} 4. Bb5+ {[%clk 0:01:46]}  Bd7 {[%clk 0:02:52]} 5. e5 {[%clk 0:01:47]}  Bxb5 {[%clk 0:02:48]} 6. Nxb5 {[%clk 0:01:48]}  a6 {[%clk 0:02:48]} 7. Nc3 {[%clk 0:01:28]}  d4 {[%clk 0:02:48]} 8. exf6 {[%clk 0:01:25]}  dxc3 {[%clk 0:02:47]} 9. bxc3 {[%clk 0:01:26]}  exf6 {[%clk 0:02:33]} 10. O-O {[%clk 0:01:25]}  Be7 {[%clk 0:02:34]} 11. a4 {[%clk 0:01:25]}  O-O {[%clk 0:02:34]} 12. Rb1 {[%clk 0:01:25]}  Qd7 {[%clk 0:02:34]} 13. d3 {[%clk 0:01:25]}  Nc6 {[%clk 0:02:22]} 14. Nd2 {[%clk 0:01:25]}  Na5 {[%clk 0:02:21]} 15. Re1 {[%clk 0:01:16]}  Rfe8 {[%clk 0:02:21]} 16. Ra1 {[%clk 0:01:13]}  f5 {[%clk 0:02:16]} 17. Nf3 {[%clk 0:01:01]}  Bf6 {[%clk 0:02:05]} 18. Bd2 {[%clk 0:01:02]}  b5 {[%clk 0:01:48]} 19. axb5 {[%clk 0:01:01]}  axb5 {[%clk 0:01:45]} 20. Rxe8+ {[%clk 0:01:01]}  Qxe8 {[%clk 0:01:45]} 21. Ra2 {[%clk 0:01:00]}  Nc6 {[%clk 0:01:35]} 22. Rxa8 {[%clk 0:01:01]}  Qxa8 {[%clk 0:01:36]} 23. Qb1 {[%clk 0:01:01]}  Qa4 {[%clk 0:01:33]} 24. g3 {[%clk 0:00:52]}  g6 {[%clk 0:01:30]} 25. Kg2 {[%clk 0:00:49]}  h5 {[%clk 0:01:29]} 26. h4 {[%clk 0:00:46]}  Kg7 {[%clk 0:01:28]} 27. Qc1 {[%clk 0:00:45]}  Ne5 {[%clk 0:01:21]} 28. Ng1 {[%clk 0:00:30]}  Qa8+ {[%clk 0:01:13]} 29. f3 {[%clk 0:00:30]}  Qa2 {[%clk 0:01:04]} 30. Ne2 {[%clk 0:00:25]}  Qa8 {[%clk 0:00:56]} 31. Ng1 {[%clk 0:00:25]}  Qa2 {[%clk 0:00:56]} 32. Kf1 {[%clk 0:00:24]}  Qd5 {[%clk 0:00:53]} 33. Qd1 {[%clk 0:00:24]}  Nc6 {[%clk 0:00:48]} 34. Nh3 {[%clk 0:00:22]}  Ne5 {[%clk 0:00:37]} 35. Kg2 {[%clk 0:00:21]}  c4 {[%clk 0:00:36]} 36. d4 {[%clk 0:00:21]}  Nc6 {[%clk 0:00:36]} 37. Nf4 {[%clk 0:00:22]}  Qd6 {[%clk 0:00:34]} 38. Be3 {[%clk 0:00:22]}  b4 {[%clk 0:00:34]} 39. cxb4 {[%clk 0:00:22]}  Nxb4 {[%clk 0:00:35]} 40. c3 {[%clk 0:00:22]}  Nd5 {[%clk 0:00:34]} 41. Nxd5 {[%clk 0:00:21]}  Qxd5 {[%clk 0:00:35]} 42. Qd2 {[%clk 0:00:22]}  Be7 {[%clk 0:00:32]} 43. Bf4 {[%clk 0:00:22]}  Bd6 {[%clk 0:00:32]} 44. Bxd6 {[%clk 0:00:21]}  Qxd6 {[%clk 0:00:33]} 45. Qe2 {[%clk 0:00:21]}  Kf6 {[%clk 0:00:32]} 46. Qxc4 {[%clk 0:00:21]}  Qa3 {[%clk 0:00:32]} 47. Qd3 {[%clk 0:00:12]}  Qb2+ {[%clk 0:00:32]} 48. Kh3 {[%clk 0:00:11]}  Qc1 {[%clk 0:00:31]} 49. Kg2 {[%clk 0:00:09]}  Qb2+ {[%clk 0:00:32]} 50. Kf1 {[%clk 0:00:09]}  Qc1+ {[%clk 0:00:32]} 51. Ke2 {[%clk 0:00:10]}  Qg1 {[%clk 0:00:31]} 52. f4 {[%clk 0:00:10]}  Ke7 {[%clk 0:00:28]} 53. c4 {[%clk 0:00:10]}  Qg2+ {[%clk 0:00:26]} 54. Kd1 {[%clk 0:00:10]}  Qg1+ {[%clk 0:00:26]} 55. Kc2 {[%clk 0:00:10]}  Kd7 {[%clk 0:00:23]} 56. Kb3 {[%clk 0:00:09]}  Qa1 {[%clk 0:00:18]} 57. c5 {[%clk 0:00:09]}  Kc6 {[%clk 0:00:17]} 58. Qf3+ {[%clk 0:00:09]}  Kc7 {[%clk 0:00:16]} 59. Qd3 {[%clk 0:00:09]}  Kc6 {[%clk 0:00:16]} 60. Qc4 {[%clk 0:00:06]}  Qb1+ {[%clk 0:00:16]} 61. Ka4 {[%clk 0:00:06]}  Qa1+ {[%clk 0:00:16]} 62. Kb4 {[%clk 0:00:06]}  Qb2+ {[%clk 0:00:15]} 63. Ka5 {[%clk 0:00:07]}  Qa3+ {[%clk 0:00:16]} 64. Qa4+ {[%clk 0:00:07]}  Qxa4+ {[%clk 0:00:15]} 65. Kxa4 {[%clk 0:00:08]} 1-0


[Site "https://www.chess.com"]

[Event "Titled Tuesday Blitz June 27 Early 2023"]
[White "Kirillov, Dmitry"]
[Black "Chigaev, Maksim"]
[WhiteFideId "34180572"]
[BlackFideId "4108116"]
[WhiteElo "2509"]
[BlackElo "2882"]
[Result "0-1"]
[Round "1"]
[TimeControl "180+2"]
[Date "2023.06.27"]
[WhiteClock "0:00:02"]
[BlackClock "0:00:42"]
[Board "44"]

1. d4 {[%clk 0:02:55]}  Nf6 {[%clk 0:02:59]} 2. c4 {[%clk 0:02:54]}  g6 {[%clk 0:02:59]} 3. Nc3 {[%clk 0:02:52]}  Bg7 {[%clk 0:03:00]} 4. e4 {[%clk 0:02:53]}  d6 {[%clk 0:03:01]} 5. Be2 {[%clk 0:02:53]}  O-O {[%clk 0:03:01]} 6. Be3 {[%clk 0:02:54]}  e5 {[%clk 0:02:58]} 7. d5 {[%clk 0:02:54]}  Na6 {[%clk 0:02:59]} 8. h4 {[%clk 0:02:49]}  Nc5 {[%clk 0:02:47]} 9. Qc2 {[%clk 0:02:31]}  Qe8 {[%clk 0:02:37]} 10. b4 {[%clk 0:01:53]}  Ncxe4 {[%clk 0:02:31]} 11. Nxe4 {[%clk 0:01:51]}  Nxe4 {[%clk 0:02:32]} 12. h5 {[%clk 0:01:03]}  f5 {[%clk 0:02:21]} 13. hxg6 {[%clk 0:01:00]}  hxg6 {[%clk 0:02:21]} 14. Nh3 {[%clk 0:00:56]}  a5 {[%clk 0:02:15]} 15. b5 {[%clk 0:00:54]}  Qe7 {[%clk 0:01:44]} 16. O-O-O {[%clk 0:00:46]}  f4 {[%clk 0:01:26]} 17. Qxe4 {[%clk 0:00:37]}  Bf5 {[%clk 0:01:26]} 18. Qf3 {[%clk 0:00:38]}  fxe3 {[%clk 0:01:24]} 19. Qxe3 {[%clk 0:00:36]}  e4 {[%clk 0:01:25]} 20. Ng5 {[%clk 0:00:23]}  Qe5 {[%clk 0:01:22]} 21. Kd2 {[%clk 0:00:22]}  Rae8 {[%clk 0:01:02]} 22. Ke1 {[%clk 0:00:18]}  Qc3+ {[%clk 0:01:00]} 23. Qxc3 {[%clk 0:00:18]}  Bxc3+ {[%clk 0:01:01]} 24. Kf1 {[%clk 0:00:18]}  e3 {[%clk 0:01:01]} 25. f3 {[%clk 0:00:17]}  Bd2 {[%clk 0:00:59]} 26. g3 {[%clk 0:00:15]}  Bc2 {[%clk 0:00:59]} 27. Kg2 {[%clk 0:00:16]}  Bxd1 {[%clk 0:00:59]} 28. Rxd1 {[%clk 0:00:15]}  Re7 {[%clk 0:00:46]} 29. Ne6 {[%clk 0:00:05]}  Rc8 {[%clk 0:00:41]} 30. a4 {[%clk 0:00:03]}  c6 {[%clk 0:00:42]} 31. dxc6 {[%clk 0:00:03]}  bxc6 {[%clk 0:00:43]} 32. f4 {[%clk 0:00:02]}  Rxe6 {[%clk 0:00:42]} 0-1


[Site "https://www.chess.com"]